Cogmind - Beta 14 @@@ ROGUE MODE // 2024.09.08 @ 23:38:54 Player: JohnnyDongs Result: Destroyed self with Mini Grenade Launcher Performance ------------- Evolutions (1) 500 Regions Visited (4) 800 Robots Destroyed (82) 410 Value Destroyed (1971) 1971 Prototype IDs (4) 80 Alien Tech Used (0) 0 Bonus (8) 8 TOTAL SCORE: 3769 Bonus ------- High Alert Combat Kills 8 Cogmind --------- Core Integrity 0/400 Matter 210/300 Energy 268/280 System Corruption 0% Temperature Cool (0) Movement Treading (320) Ox2 Location -9/Mines Parts ------- > --- POWER (1) -------- Heavy Ion Engine > --- PROPULSION (2) --- Light Treads Improved Treads > --- UTILITY (4) ------ Heat Sink Heat Sink Huge Storage Unit Medium Armor Plating > --- WEAPON (2) ------- Particle Cannon Mini Grenade Launcher > --- INVENTORY (25) --- Heavy Ion Engine Heavy Ion Engine Light Treads Light Treads Light Treads Large Storage Unit High-capacity Matter Pod (200) Signal Interpreter Seismic Detector Improved Targeting Computer Hardened Light Armor Plating Hardened Light Armor Plating High-powered Tractor Beam Particle Cannon Particle Cannon Particle Cannon Advanced Beam Cannon Heavy Assault Rifle Battle Cannon Plasma Cutter Mace Signal Generator Peak State ------------ > --- POWER ------------ Heavy Ion Engine > --- PROPULSION ------- Light Treads Improved Treads > --- UTILITY ---------- Heat Sink Huge Storage Unit Medium Armor Plating Hardened Light Armor Plating > --- WEAPON ----------- Particle Cannon Particle Cannon > --- INVENTORY -------- Heavy Ion Engine Heavy Ion Engine Light Treads Light Treads Light Treads Heat Sink Large Storage Unit High-capacity Matter Pod Signal Interpreter Seismic Detector Improved Targeting Computer Hardened Light Armor Plating High-powered Tractor Beam Particle Cannon Particle Cannon Advanced Beam Cannon Heavy Assault Rifle Battle Cannon Mini Grenade Launcher Plasma Cutter Mace Signal Generator [Rating: 20] Favorites ----------- Power Ion Engine Engine Ion Engine Propulsion Light Treads Treads Light Treads Utility Huge Storage Unit Device Heat Sink Storage Huge Storage Unit Processor Signal Interpreter Protection Light Armor Plating Weapon Beam Cannon Energy Gun Medium Laser Energy Cannon Beam Cannon Ballistic Gun Assault Rifle Launcher Mini Grenade Launcher Special Weapon Mining Laser Build | -11 -10 -10 -9 -9 ------- Run | Yrd Mat Min Mat Min Slots Evolved 2 | . . . 2 . Power . | . . . . . Propulsion . | . . . . . Utility 2 | . . . 2 . Weapon . | . . . . . Parts Attached 76 | 9 15 3 42 7 Power 9 | 2 1 1 5 . Engine 9 | 2 1 1 5 . Core . | . . . . . Reactor . | . . . . . Propulsion 15 | 2 3 . 8 2 Treads 15 | 2 3 . 8 2 Leg . | . . . . . Wheel . | . . . . . Hover . | . . . . . Flight . | . . . . . Utility 31 | 3 6 . 18 4 Device 12 | 2 3 . 5 2 Storage 3 | 1 2 . . . Processor 2 | . 1 . 1 . Hackware . | . . . . . Protection 14 | . . . 12 2 Artifact . | . . . . . Weapon 21 | 2 5 2 11 1 Energy Gun 3 | 2 1 . . . Energy Cannon 13 | . 3 1 9 . Ballistic Gun 1 | . 1 . . . Ballistic Cannon . | . . . . . Launcher 3 | . . . 2 1 Special Weapon 1 | . . 1 . . Impact Weapon . | . . . . . Slashing Weapon . | . . . . . Piercing Weapon . | . . . . . Special Melee Weapon . | . . . . . Unidentified Prototypes 2 | . . . 2 . Parts Lost 10 | . 2 1 4 3 Power 1 | . . 1 . . Propulsion 1 | . . . . 1 Utility 6 | . 1 . 3 2 Weapon 2 | . 1 . 1 . Highest Loss Streak 3 | . 1 1 1 3 To Critical Strikes . | . . . . . Average Slot Usage (%) 99 | . 99 100 99 99 Engine 12 | . 14 14 11 11 Treads 25 | . 27 28 22 22 Device 10 | . 9 . 16 21 Storage 12 | . 14 14 11 11 Processor 6 | . 4 14 5 . Protection 5 | . . . 11 11 Energy Gun 1 | . 3 . . . Energy Cannon 23 | . 22 27 21 21 Peak Build Rating 20 | 9 10 9 18 20 Average Rating 11 | 6 8 8 14 17 On Entrance 8 | . 7 9 9 17 Naked Turns . | . . . . . Heaviest Build 105 | 15 92 91 101 105 Greatest Support 43 | 40 40 40 40 43 Greatest Overweight (x) 3 | 3 2 2 2 2 Average Overweight (x) 1 | . 1 2 2 2 Largest Inventory Capacity 25 | 8 25 25 25 25 Average Capacity 23 | 7 21 25 25 25 Most Carried 25 | 6 18 20 25 25 Average Carried 19 | 3 13 19 22 23 Final Capacity 25 | 8 25 25 25 25 Final Carried 25 | 6 18 19 25 22 Class Distribution -------------------- 56% | Mutant 43% | Scavenger-Mutant Dominant Class ---------------- Mutant | -10/Materials Mutant | -10/Mines Scavenger-Mutant | -9/Materials Scavenger-Mutant | -9/Mines Resources | -11 -10 -10 -9 -9 ----------- Run | Yrd Mat Min Mat Min Matter Collected 1124 | 246 428 10 440 . Remotely . | . . . . . Salvage Created 2945 | 38 706 . 2092 109 Parts 166 | 9 43 . 113 1 Haulers Intercepted 8 | . 2 . 6 . Recyclers Shooed 4 | . 1 . 3 . Parts Field Recycled . | . . . . . Retrieved Matter . | . . . . . Parts Self-Destructed . | . . . . . Prevented . | . . . . . Kills | -11 -10 -10 -9 -9 ------- Run | Yrd Mat Min Mat Min Combat Hostiles Destroyed 54 | . 13 . 37 4 Guns 8 | . 8 . . . Cannons 38 | . 5 . 31 2 AOE 6 | . . . 4 2 Classes Destroyed 13 | 1 3 . 7 2 Worker 3 | . . . 3 . Tunneler 6 | 3 1 . 2 . Hauler 8 | . 2 . 6 . Recycler 3 | . . . 3 . Mechanic 1 | . . . 1 . Operator 2 | . . . 2 . Watcher 7 | . 3 . 4 . Swarmer 11 | . . . 11 . Grunt 29 | . 13 . 16 . Brawler 1 | . . . 1 . Sentry 9 | . . . 9 . Demolisher 2 | . . . . 2 Assembled 2 | . . . . 2 Best Kill Streak 4 | 2 3 . 4 2 Combat Bots Only 4 | . 3 . 4 2 Max Kills in Single Turn 4 | 1 1 . 4 2 Gunslinging . | . . . . . Exploded 4 | . . . 4 2 Melee . | . . . . . Uniques/NPCs Destroyed . | . . . . . Combat | -11 -10 -10 -9 -9 -------- Run | Yrd Mat Min Mat Min Hostile Shots Fired 271 | . 59 9 189 14 Missed 76 | . 15 4 54 3 Damage Taken 2802 | . 558 119 1624 501 Core 439 | . 32 . 307 100 Absorbed by Shields . | . . . . . Redirected to Shielding 6 | . . . 6 . Regen/Repaired (Parts) 188 | . 188 . . . Core Remaining (%) 93 | 100 . 87 . . Volleys Fired 209 | 12 65 5 119 8 Largest 2 | 1 2 2 2 2 Hottest 136 | 50 120 120 136 136 Shots Fired 359 | 12 91 9 234 13 Gun 80 | 12 68 . . . Cannon 272 | . 23 8 231 10 Launcher 6 | . . . 3 3 Special 1 | . . 1 . . Kinetic 17 | . 17 . . . Thermal 333 | 12 71 9 231 10 Explosive 6 | . . . 3 3 Electromagnetic 3 | . 3 . . . Robot Hit Streak 22 | 9 15 4 22 15 Robot Miss Streak 5 | 2 2 3 5 1 Penetration Max . | . . . . . Secondary Targets . | . . . . . Shots Hit Robots 245 | 10 72 5 147 11 Core Hits 107 | 3 30 2 65 7 Critical Kills 2 | . . . 2 . Critical Parts Destroyed . | . . . . . Critical Strikes 10 | . 8 . 2 . Burn 8 | . 8 . . . Meltdown 2 | . . . 2 . Melee Attacks . | . . . . . Impact . | . . . . . Slashing . | . . . . . Piercing . | . . . . . Sneak Attacks . | . . . . . Combat Hostiles . | . . . . . Follow-up Attacks . | . . . . . Damage Inflicted 4908 | 127 1113 97 3118 453 Guns 824 | 127 697 . . . Cannons 3412 | . 329 86 2815 182 Explosions 532 | . . . 271 261 Melee . | . . . . . Ramming 140 | . 87 11 32 10 Kinetic 176 | . 176 . . . Thermal 4018 | 127 808 86 2815 182 Explosive 532 | . . . 271 261 Electromagnetic 42 | . 42 . . . Impact . | . . . . . Slashing . | . . . . . Piercing . | . . . . . Highest Corruption . | . . . . . Average Corruption . | . . . . . Corruption Purged . | . . . . . Corruption Blocked . | . . . . . Overload Shots . | . . . . . Overflow Damage 50 | . . . 5 45 Projectiles 5 | . . . 5 . Explosions 45 | . . . . 45 Melee . | . . . . . Knockbacks 1 | . . . 1 . Impact 1 | . . . 1 . Kinetic . | . . . . . Secondary . | . . . . . Self-Inflicted Damage 34 | . . . . 34 Shots 1 | . . . . 1 Rammed 25 | . 12 2 10 1 Targets Rammed 27 | . 13 2 11 1 Kicked . | . . . . . Crushed 2 | . 1 . 1 . Highest Temperature 395 | 70 210 160 395 74 Average Temperature 60 | 29 59 59 64 29 Received Heat Transfer 872 | . 300 . 552 20 Effects 1 | . . . 1 . Energy Bleed 1 | . . . 1 . Siege Activations . | . . . . . Robots Corrupted . | . . . . . Combat Hostiles . | . . . . . Parts Fried . | . . . . . Impact Corruptions . | . . . . . Robots Melted 3 | . . . 3 . Combat Hostiles 2 | . . . 2 . Parts Melted 24 | . 8 . 16 . Heat Transferred 9065 | 370 2627 185 5550 333 Parts Sabotaged . | . . . . . Parts Stolen . | . . . . . Parts Stripped . | . . . . . Power Chain Reactions . | . . . . . Alert | -11 -10 -10 -9 -9 ------- Run | Yrd Mat Min Mat Min Peak Influence 491 | 15 299 31 491 181 Initial 181 | . 9 1 . 181 Average 97 | 5 71 3 171 122 Maximum Alert Level 2 | . 1 . 2 . Low Security (%) 85 | 100 91 100 67 100 Level 1 10 | . 8 . 21 . Level 2 4 | . . . 10 . Level 3 . | . . . . . Level 4 . | . . . . . Level 5 . | . . . . . High Security . | . . . . . Max Security . | . . . . . Squads Dispatched 12 | . 5 . 7 . Investigation 7 | . 5 . 2 . Extermination . | . . . . . Reinforcement 3 | . . . 3 . Assault 2 | . . . 2 . Garrison . | . . . . . Intercept . | . . . . . Searches Triggered . | . . . . . Construction Impeded . | . . . . . Haulers Reinforced . | . . . . . Active Scanning Responses . | . . . . . Cargo Convoy Interrupts . | . . . . . Stealth | -11 -10 -10 -9 -9 --------- Run | Yrd Mat Min Mat Min Distress Signals 7 | . 3 . 4 . Communications Jammed . | . . . . . Distress Signals . | . . . . . Times Spotted 91 | . 23 7 56 5 Peak Tracking Total 4 | . 4 3 4 3 Tactical Retreats 4 | . 1 1 2 . Traps | -11 -10 -10 -9 -9 ------- Run | Yrd Mat Min Mat Min Traps Triggered 2 | . 2 . . . Indirectly . | . . . . . Trap Hack Attempts . | . . . . . Triggered . | . . . . . Disarmed . | . . . . . Reprogrammed . | . . . . . Reused . | . . . . . Traps Extracted . | . . . . . Installed . | . . . . . Triggered . | . . . . . Machines | -11 -10 -10 -9 -9 ---------- Run | Yrd Mat Min Mat Min Machines Disabled 4 | . . . 4 . Max in Single Turn 2 | . . . 2 . Machines Repaired . | . . . . . Machines Dismantled . | . . . . . Machines Sabotaged . | . . . . . Overloaded Fab Kills . | . . . . . Hacking | -11 -10 -10 -9 -9 --------- Run | Yrd Mat Min Mat Min Machines Accessed 20 | . 11 . 9 . Terminals 15 | . 8 . 7 . Fabricators . | . . . . . Repair Stations 2 | . 1 . 1 . Recycling Units 3 | . 2 . 1 . Scanalyzers . | . . . . . Garrison Access . | . . . . . Total Hacks 59 | . 37 . 22 . Successful 27 | . 19 . 8 . Failed 32 | . 18 . 14 . Catastrophic 4 | . 2 . 2 . Database Lockouts . | . . . . . Manual 23 | . 16 . 7 . Terminals 51 | . 31 . 20 . Fabricators . | . . . . . Repair Stations 5 | . 4 . 1 . Recycling Units 3 | . 2 . 1 . Scanalyzers . | . . . . . Garrison Access . | . . . . . Terminal Hacks 20 | . 13 . 7 . Robot Analysis 7 | . 7 . . . Prototype ID Bank 1 | . 1 . . . Terminal Index 1 | . 1 . . . Alert Level 3 | . 2 . 1 . Unreport Threat 1 | . . . 1 . Locate Traps 4 | . 1 . 3 . Patrol Status 1 | . . . 1 . Transport Status 1 | . . . 1 . Zone Layout 1 | . 1 . . . Fabricator Hacks . | . . . . . Repair Station Hacks 4 | . 4 . . . Scan Component 2 | . 2 . . . Repair 2 | . 2 . . . Recycling Unit Hacks 3 | . 2 . 1 . Report Inventory 3 | . 2 . 1 . Scanalyzer . | . . . . . Garrison Access Hacks . | . . . . . Unauthorized Hacks . | . . . . . Terminals . | . . . . . Fabricators . | . . . . . Repair Stations . | . . . . . Recycling Units . | . . . . . Scanalyzers . | . . . . . Garrison Access . | . . . . . Data Cores Recovered . | . . . . . Used . | . . . . . Hacking Detections 16 | . 8 . 8 . Full Trace Events 9 | . 7 . 2 . Feedback Events . | . . . . . Feedback Blocked . | . . . . . Robot Schematics Acquired . | . . . . . Robots Built . | . . . . . Authchips . | . . . . . Time . | . . . . . Total Robot Build Rating . | . . . . . Part Schematics Acquired . | . . . . . Parts Built . | . . . . . Authchips . | . . . . . Time . | . . . . . Total Part Build Rating . | . . . . . Parts Repaired 2 | . 2 . . . Time 52 | . 52 . . . Parts Recycled . | . . . . . Recycled Matter . | . . . . . Retrieved Matter . | . . . . . Retrieved Components . | . . . . . Parts Scanalyzed . | . . . . . Part Schematics Acquired . | . . . . . Parts Damaged . | . . . . . Bothacking | -11 -10 -10 -9 -9 ------------ Run | Yrd Mat Min Mat Min Used RIF Installer . | . . . . . Robots Hacked . | . . . . . Non-combat . | . . . . . Combat . | . . . . . Robot Hacks Applied . | . . . . . Relay Couplers Released . | . . . . . Fabnet Peak Effective % . | . . . . . Robots Rewired . | . . . . . Allies Hacked . | . . . . . Hacks Repelled . | . . . . . Allies | -11 -10 -10 -9 -9 -------- Run | Yrd Mat Min Mat Min Total Allies . | . . . . . Largest Group . | . . . . . Highest-Rated Group . | . . . . . Highest-Rated Ally . | . . . . . Total Orders . | . . . . . Ally Attacks . | . . . . . Total Damage . | . . . . . Kills . | . . . . . Allies Corrupted . | . . . . . Allies Melted . | . . . . . Intel | -11 -10 -10 -9 -9 ------- Run | Yrd Mat Min Mat Min Robot Analysis Total 7 | . 7 . . . Derelict Logs Recovered 1 | . . 1 . . Drone Launches . | . . . . . Drone Recoveries . | . . . . . Exploration | -11 -10 -10 -9 -9 ------------- Run | Yrd Mat Min Mat Min Turns Passed 8140 | 144 2193 1951 3205 647 Spaces Moved 2406 | 66 746 595 809 190 Core 11 | 11 . . . . Treads 2395 | 55 746 595 809 190 Legs . | . . . . . Wheels . | . . . . . Hover . | . . . . . Flight . | . . . . . Fastest Speed 50 | 50 160 320 320 320 Average Speed 293 | 152 247 320 320 320 Slowest Speed 320 | 200 320 320 320 320 Overloaded Moves . | . . . . . Propulsion Burnouts . | . . . . . Robots Hopped . | . . . . . Cave-ins Triggered . | . . . . . Exploration Rate (%) 61 | 6 91 99 74 38 Regions Visited 4 Branch Regions 2 Pre-discovered Areas . | . . . . . Known Exits Taken 3 | . 1 1 1 . Unknown Exits Taken 1 | 1 . . . . Scrap Searched 1 | . . 1 . . Spaces Dug 1 | . . 1 . . Terrain Destroyed 61 | . . 1 32 28 Melee . | . . . . . Projectile 1 | . . 1 . . AOE 60 | . . . 32 28 Terrain Rammed . | . . . . . Walls Destroyed . | . . . . . Machines Disabled . | . . . . . Actions | -11 -10 -10 -9 -9 --------- Run | Yrd Mat Min Mat Min Total 3082 | 94 973 628 1174 213 Wait 275 | 3 115 18 132 7 Move 2402 | 65 745 594 808 190 Hop . | . . . . . Pick Up 41 | 4 10 4 23 . Fast Attach 26 | 8 10 . 8 . Attach 14 | . 2 1 8 3 Detach 8 | 1 5 . 2 . Swap 36 | 1 3 2 26 4 Drop 44 | . 5 2 37 . Fire 209 | 12 65 5 119 8 Melee . | . . . . . Ram . | . . . . . Kick . | . . . . . Crush 27 | . 13 2 11 1 Escape Stasis . | . . . . . Rewire . | . . . . . Trap . | . . . . . Miscellaneous . | . . . . . Route ------- -11/Scrapyard -10/Materials (discovered 4 exits: *Mat x3 / *Min) -10/Mines (discovered 3 exits: *Mat x2 / *Sub) -9/Materials (discovered 4 exits: *Mat x2 / *Min x2) -9/Mines (discovered 1 exit: *Mat) History --------- Turn | Location | Event 16 | -11/Scrapyard | Discovered new exit (range 16) 145 | -11/Scrapyard | Entered Materials 308 | -10/Materials | Build established: Mutant 723 | -10/Materials | Discovered new exit (range 16) 1021 | -10/Materials | Discovered new exit (range 16) 1142 | -10/Materials | Repaired Lgt. Treads 1170 | -10/Materials | Repaired Lgt. Treads 1534 | -10/Materials | Discovered new exit (range 14) 1649 | -10/Materials | Identified exit to Materials 1831 | -10/Materials | Discovered exit to Materials (range 5) 2335 | -10/Materials | Identified exit to Mines 2338 | -10/Materials | Entered Mines 2339 | -10/Mines | Met a Derelict testing a Signal Generator 2345 | -10/Mines | Found Signal Generator 2629 | -10/Mines | Learned Materials emergency access door positions 2629 | -10/Mines | Discovered exit to Materials (range 9) 2754 | -10/Mines | Discovered new exit (range 9) 2779 | -10/Mines | Identified exit to Subcaves 2930 | -10/Mines | Discovered exit to Materials (range 14) 3428 | -10/Mines | A weapon hastily lodged in a ceiling crevice suddenly fell to the ground 3574 | -10/Mines | Excavation squad dispatched 3574 | -10/Mines | A large section of the Mines collapsed 4289 | -10/Mines | Entered Materials 4289 | -9/Materials | Evolved 2 slots: Utility x2 4688 | -9/Materials | Build established: Scavenger-Mutant 4757 | -9/Materials | Discovered new exit (range 14) 5101 | -9/Materials | Identified exit to Mines 5289 | -9/Materials | Discovered exit to Mines (range 16) 5559 | -9/Materials | Core integrity fell below 50% 5946 | -9/Materials | Discovered new exit (range 16) 5998 | -9/Materials | Identified exit to Materials 7238 | -9/Materials | Discovered exit to Materials (range 8) 7489 | -9/Materials | First assault squad dispatched 7494 | -9/Materials | Entered Mines 7776 | -9/Mines | Discovered exit to Materials (range 5) 7883 | -9/Mines | Assembled infested the area 7905 | -9/Mines | Core integrity fell below 20% 7948 | -9/Mines | Lost 3 parts (1n2u) 8141 | -9/Mines | Destroyed self with Mini Grenade Launcher Last Messages --------------- 07906_ Lgt. Treads destroyed. 07907_ The unstable cave ceiling collapses. 07909_ D-53 Grenadier destroyed. 07915_ Lgt. Armor Plating destroyed. 07916_ The unstable cave ceiling collapses. 07917_ Heat Sink destroyed. 07918_ The unstable cave ceiling collapses. 07919_ D-53 Grenadier destroyed. 07922_ The unstable cave ceiling collapses. 07992_ K-01 Serf collects debris. 08062_ K-01 Serf cleans the Plasma Injector. 08091_ K-01 Serf destroyed. 08136_ T-07 Excavator destroyed. 08137_ Destroyed Asb. Hover Unit. 08137_ K-01 Serf collects debris. 08139_ as-17571 destroyed. 08139_ as-96000 destroyed. 08141_ Destroyed Com. Wheel. 08141_ Destroyed Asb. F-torch. Map ----- +----------------------------------------------------+ | | | | | | | | | | | ????????????????????????????? | | ??????????????????????####### | | ?????????????????????## | | ???????????????????### | | ??????????????????## #### | | ??????????????##### #??# | | ??????####???## ####??# | | ?????## ##### ###?????? | | ?????# ## ##???????? | | ????## #????????? | | ????#k < """ #???????? | | ???## """ #???????? | | ??##*k=## """ #??????? | | ??# k#### #?????? | | ??# #??# ### #????? | | ??# #??## ##?## #???? % | | ??# a##??####???? #??? " | | ??# r #?????????? #? | | ??# #?????????? ? | | ??## * ###???????? ?? | | ???#@ #????????# ??? | | ???# #?????????# ????? | | ??# ##??????????????????? | | ??# ! #???????????????????? | | ?? %* #??????????????????? | | ?? ##??????????????????? | | ?# ##???????????????????? | | ?# ?####???????????????? | | ?# ## ##??????????????? | | ?# #??????????????? | | ?## """ #??????????????? | | ??# """ ##?????? ???? | | ??## """ ### ??? | | ???## %= ??? | | ????## #????????? | | ?????###### ########????????? | | ??????????# ####????????????? | | ??????????# #????????????? | | ??????????# #????????????? | | ??????????### #???######???? | | ????????????# #?? #???? | | ????????????# ### #???? | | ????????????# """ ???? | | ????????????# """ #???? | | ????????????### ## """ #???? | +----------------------------------------------------+ Best States ------------- Heat Dissipation 48 Energy Generation 14 Energy Capacity 280 Matter Stores 300 Matter Capacity 300 Sight Range 16 Terrain Scan Range 16 Terrain Scan Density 10 Armor Coverage 300 Utility Shielding 33 Evasion (%) 40 Recoil Reduction 2 Item Schematics ----------------- None Robot Schematics ------------------ None Fabricated ------------ Nothing Alien Tech Used ----------------- None Achievements -------------- None Challenges ------------ None Game ------ Seed MediumDisruptorDatajack Manual? 0 Play Time 00:54:23 Cumulative 66.7 hours Start 2024.09.08 @ 22:18:51 End 2024.09.08 @ 23:38:54 Sessions 1 Manual Loads 0 Difficulty Rogue Special Mode None Game No. 44 Rogue 44 Adventurer 0 Explorer 0 Win Type - Total 0 Types 0/0/0/0/0/0/0/0/0 Lore% 23 Gallery% 46 Achievement% 39 Wizard Run 0 Options --------- Layout 1 ASCII 0 Keyboard 0 Movement Numpad Keybinds 0 Fullscreen 1 Font 24/Smallcaps Map View 50x35 Zoom Use 0% Tactical HUD 1 Map Filters NONE Filters NONE Steam 1 RUN: 0a78f3c9-857f-46cb-926c-2dd76dc82002